bitfinex-derivatives/quotes_BTCF0:USTF0_20210111
["timestamp","ask_amount","ask_price","bid_price","bid_amount"]
[1610398625050,0.09726,33198.0,33171.0,0.12147608]
[1610398625251,0.09726,33198.0,33170.0,0.0895]
[1610398625252,0.09726,33198.0,33197.0,0.13632608]
[1610398625453,6e-05,33198.0,33180.0,3.8196]
[1610398625849,6e-05,33198.0,33197.0,1.0]
[1610398626849,6e-05,33198.0,33190.0,4.64225]
[1610398627052,6e-05,33198.0,33183.0,3.4038]
[1610398627250,6e-05,33198.0,33197.0,0.13632608]
[1610398627451,6e-05,33198.0,33183.0,3.4038]
[1610398628451,6e-05,33204.0,33183.0,3.4038]
[1610398628652,0.08046,33198.0,33183.0,3.4038]
[1610398628853,0.08046,33198.0,33183.0,3.01846]
[1610398629053,0.06876,33198.0,33183.0,3.01846]
[1610398629253,0.06876,33198.0,33197.0,0.13632608]
[1610398629456,0.06876,33198.0,33171.0,3.3924]
[1610398629656,0.06876,33198.0,33197.0,0.0891]
[1610398629857,3.50741236,33278.0,33184.0,0.0891]
[1610398630057,0.0895,33258.0,33184.0,0.0891]
[1610398630260,0.0753,33238.0,33200.0,4.7699]
[1610398630457,0.0891,33241.0,33200.0,4.7699]
[1610398630857,2.94e-06,33242.0,33200.0,4.7699]
[1610398631258,2.94e-06,33242.0,33241.0,0.13632608]
[1610398631461,2.94e-06,33242.0,33232.0,0.0902]
[1610398631657,0.08126294,33242.0,33232.0,0.0902]
[1610398631957,6.294e-05,33242.0,33232.0,0.0902]
[1610398632157,0.0908,33289.0,33232.0,0.0902]
[1610398632358,0.07613,33242.0,33236.0,4.7628]
[1610398632558,0.07613,33242.0,33237.0,0.0914]
[1610398632760,0.18,33279.0,33237.0,0.0914]
[1610398632958,3.49338964,33316.0,33237.0,0.0914]
[1610398633157,0.13632608,33277.0,33273.0,0.13632608]
[1610398633360,0.0904,33276.0,33240.0,0.0911]
[1610398633557,0.21210608,33277.0,33240.0,0.0911]
[1610398633757,0.0906,33302.0,33240.0,0.0911]
[1610398634658,0.0908,33301.0,33240.0,0.0911]
[1610398634859,0.0899,33310.0,33240.0,0.0911]
[1610398635058,0.0899,33310.0,33258.0,4.7639]
[1610398635262,0.0899,33310.0,33259.0,0.0911]
[1610398635460,0.0895,33331.0,33260.0,0.0913]
[1610398636062,0.0905,33336.0,33260.0,0.0913]
[1610398636462,0.0892,33344.0,33289.0,0.13632608]
[1610398636662,0.0886,33353.0,33289.0,0.13632608]
[1610398636862,0.0886,33353.0,33295.0,4.2364]
[1610398637262,0.0886,33353.0,33271.0,0.1809]
[1610398637463,4.3161,33349.0,33276.0,3.7232]
[1610398637664,0.091,33348.0,33276.0,3.7232]
[1610398637866,0.0896,33347.0,33276.0,3.7232]
[1610398638467,0.13632608,33305.0,33285.0,0.13632608]
[1610398638666,0.13632608,33305.0,33278.0,0.0891]
[1610398638667,0.07279,33305.0,33278.0,0.0891]
[1610398639066,0.07279,33305.0,33276.0,3.7232]
[1610398639467,0.07279,33305.0,33277.0,0.091]
[1610398640266,0.07279,33305.0,33276.0,3.7232]
[1610398640468,0.07279,33305.0,33142.0,1.21928228]
[1610398640668,0.07279,33305.0,33262.0,0.13632608]
[1610398640867,1.0,33282.0,33253.0,4.9167]
[1610398641070,1.10222,33282.0,33231.0,0.0908]
[1610398642567,0.13632608,33271.0,33265.0,0.13632608]
[1610398642766,0.07441,33271.0,33265.0,0.13632608]
[1610398643967,0.04441,33271.0,33265.0,0.13632608]
[1610398644167,1e-05,33271.0,33265.0,0.13632608]
[1610398644568,0.08851,33275.0,33270.0,0.13632608]
[1610398644768,0.06381,33275.0,33270.0,0.13632608]
[1610398644968,0.04881,33275.0,33270.0,0.13632608]
[1610398645168,0.05504,33282.0,33270.0,0.13632608]
[1610398645368,0.10881608,33307.0,33270.0,0.13632608]
[1610398645567,0.09,33333.0,33264.0,4.4559]
[1610398645770,0.09,33333.0,33264.0,4.3656]
[1610398646768,0.13632608,33267.0,33264.0,4.3656]
[1610398646969,0.21176608,33267.0,33264.0,4.3656]
[1610398647170,0.07544,33267.0,33264.0,4.4546]
[1610398647371,3.5869,33334.0,33264.0,4.4546]
[1610398647569,0.03918935,38558.0,33264.0,0.089]
[1610398647770,3.9049,33358.0,33266.0,4.9575]
[1610398647970,1.6914,33345.0,33266.0,4.9575]
[1610398648373,0.0907,33344.0,33266.0,4.9575]
[1610398648570,0.0885,33343.0,33266.0,4.9575]
[1610398648772,1.0,33284.0,33266.0,4.9575]
[1610398648972,1.09384,33284.0,33142.0,1.5]
[1610398649172,1.09384,33284.0,33238.0,4.2234]
[1610398650076,1.09384,33284.0,33188.0,1.5]
[1610398650274,0.98924,33284.0,33258.0,3.8067]
[1610398650478,0.03794,33284.0,33259.0,0.0911]
[1610398650676,1.0,33335.0,33283.0,6.0]
[1610398651479,1.0,33335.0,33300.0,0.13632608]
[1610398652675,0.08552,33344.0,33300.0,0.13632608]
[1610398653478,0.08552,33344.0,33300.0,0.22632608]
[1610398653675,0.2994,33411.0,33291.0,4.7005]
[1610398654076,0.2994,33411.0,33310.0,0.13632608]
[1610398654676,1.0,33395.0,33294.0,0.0908]
[1610398655076,0.27784,33355.0,33294.0,0.0908]
[1610398656080,0.13632608,33316.0,33291.0,4.7005]
[1610398656278,0.08796,33316.0,33291.0,4.7005]
[1610398657080,0.11023,33316.0,33291.0,4.7893]
[1610398658182,0.11023,33316.0,33315.0,0.13632608]
[1610398658382,0.27784,33355.0,33315.0,0.13632608]
[1610398658782,1.0,33350.0,33315.0,6.13632608]
[1610398659284,1.0,33350.0,33315.0,6.22562608]
[1610398659782,1.0,33350.0,33315.0,6.13632608]
[1610398660184,1.0,33350.0,33315.0,6.0]
[1610398660384,0.8946,33350.0,33315.0,6.0]
[1610398660585,0.3006,33350.0,33330.0,4.71301]
[1610398660785,5.0,33367.0,33330.0,4.71301]
[1610398660786,0.0888,33395.0,33331.0,1.0]
[1610398660985,0.0887,33418.0,33331.0,1.0]
[1610398661187,0.0887,33418.0,33351.0,1.96098]
[1610398661386,0.0895,33413.0,33351.0,0.73874]
[1610398661787,0.0895,33413.0,33352.0,0.0912]
[1610398661988,0.0885,33445.0,33352.0,0.17209]
[1610398662188,4.052e-05,33391.0,33383.0,0.13632608]
[1610398662388,4.052e-05,33391.0,33384.0,0.0888]
[1610398664088,4.052e-05,33391.0,33390.0,0.13632608]
[1610398664489,0.0895,33443.0,33384.0,0.0888]
[1610398664889,0.0901,33442.0,33382.0,4.6178]
[1610398665290,0.16109,33442.0,33382.0,4.6178]
[1610398665689,0.16109,33442.0,33382.0,4.6078]
[1610398665890,0.16109,33442.0,33383.0,0.0886]
[1610398666290,0.16109,33442.0,33364.0,3.66408]
[1610398666690,0.13632608,33365.0,33364.0,0.22820608]
[1610398666891,0.07937,33381.0,33364.0,0.09188]
[1610398667291,0.07507,33381.0,33364.0,0.63348]
[1610398667493,7e-05,33381.0,33364.0,0.63348]
[1610398667690,3.9325,33422.0,33364.0,0.63348]
[1610398667891,0.0258,33428.0,33364.0,0.09188]
[1610398668092,0.0258,33428.0,33381.0,3.885]
[1610398668291,0.0258,33428.0,33381.0,3.96983]
[1610398668691,0.0258,33428.0,33427.0,0.13632608]
[1610398669291,0.0258,33428.0,33393.0,0.08813]
[1610398669492,0.13633,33428.0,33393.0,0.71953]
[1610398669892,0.07099,33442.0,33393.0,0.08813]
[1610398670092,3.39896587,33522.0,33393.0,0.08813]
[1610398670294,3.3881,33499.0,33404.0,4.1698]
[1610398670493,0.0895,33480.0,33404.0,4.1698]
[1610398670692,0.0883,33492.0,33424.0,0.13632608]
[1610398670896,0.10833,33480.0,33424.0,0.13632608]
[1610398671095,0.10833,33480.0,33415.0,0.08157]
[1610398671697,0.19853,33480.0,33415.0,0.08157]
[1610398671894,0.19853,33480.0,33409.0,4.3767]
[1610398672295,0.68773,33480.0,33409.0,4.3767]
[1610398672695,0.13632608,33410.0,33409.0,4.3767]
[1610398673095,0.13632608,33410.0,33391.0,3.6877]
[1610398673296,0.09019,33415.0,33391.0,3.6877]
[1610398673496,0.09019,33415.0,33391.0,3.77943]
[1610398673997,0.09019,33415.0,33392.0,0.0904]
[1610398674200,4.438,33461.0,33392.0,0.0904]
[1610398674697,4.438,33461.0,33404.0,0.13632608]
[1610398674698,0.13632608,33416.0,33404.0,0.13632608]
[1610398675299,0.13632608,33416.0,33415.0,1.0]
[1610398675700,0.08557,33423.0,33415.0,1.0]
[1610398676102,1.0,33434.0,33415.0,1.09704]
[1610398676704,1.0,33434.0,33433.0,0.13632608]
[1610398677303,4.3069,33491.0,33433.0,0.13632608]
[1610398677501,0.0899,33504.0,33433.0,0.13632608]
[1610398677702,0.0895,33497.0,33433.0,4.90752608]
[1610398677902,0.0883,33480.0,33433.0,4.90752608]
[1610398678102,0.09428,33480.0,33433.0,4.90752608]
[1610398678303,0.09428,33480.0,33433.0,4.99742608]
[1610398678702,0.09428,33480.0,33453.0,0.13632608]
[1610398678902,0.09428,33480.0,33433.0,4.8611]
[1610398679306,1.0,33471.0,33454.0,1.0]
[1610398679703,1.09024,33471.0,33454.0,1.0]
[1610398680503,1.08524,33471.0,33454.0,1.0]
[1610398680704,0.13632608,33455.0,33454.0,1.0]
[1610398680906,0.13632608,33455.0,33425.0,0.13632608]
[1610398681105,0.09784,33461.0,33402.0,0.10077]
[1610398681909,0.09784,33461.0,33395.0,3.6256]
[1610398682107,0.09,33460.0,33395.0,3.6256]
[1610398682708,0.13632608,33396.0,33395.0,3.6256]
[1610398682911,0.13632608,33396.0,33369.0,0.2751]
[1610398683109,0.13632608,33396.0,33361.0,3.4219]
[1610398683310,0.22159608,33396.0,33361.0,3.4219]
[1610398683510,0.22159608,33396.0,33326.0,0.0888]
[1610398683710,0.22159608,33396.0,33323.0,1.0]
[1610398683912,4.4295,33393.0,33323.0,1.0]
[1610398684912,4.4295,33393.0,33307.0,3.8465]
[1610398684913,4.4295,33393.0,33329.0,0.13632608]
[1610398685112,0.0896,33392.0,33329.0,0.13632608]
[1610398685310,4.4295,33393.0,33329.0,0.13632608]
[1610398685710,0.08527,33396.0,33329.0,0.13632608]
[1610398686911,0.08527,33396.0,33334.0,1.0]
[1610398687115,4.4408,33450.0,33349.0,4.0579]
[1610398687313,4.4408,33450.0,33349.0,4.14113]
[1610398687511,4.4408,33450.0,33388.0,0.13632608]
[1610398687711,4.4408,33450.0,33388.0,0.07508]
[1610398688714,4.4408,33450.0,33378.0,0.09087]
[1610398688913,1.0,33389.0,33378.0,0.09087]
[1610398689514,0.13632608,33379.0,33378.0,0.09087]
[1610398689716,1.0,33389.0,33378.0,0.09087]
[1610398690619,0.8166,33389.0,33378.0,0.09087]
[1610398690817,0.07684,33419.0,33378.0,0.09087]
[1610398691016,0.07684,33419.0,33383.0,4.6911]
[1610398691217,4.2194,33474.0,33383.0,4.6911]
[1610398692218,0.2932,33473.0,33383.0,4.6911]
[1610398692418,0.38251,33473.0,33383.0,4.6911]
[1610398692618,0.38251,33473.0,33441.0,0.13632608]
[1610398693019,1.0,33456.0,33439.0,1.0]
[1610398693220,1.07257,33456.0,33439.0,1.0]
[1610398694620,0.13632608,33447.0,33439.0,1.0]
[1610398694824,0.23563608,33447.0,33439.0,1.0]
[1610398695020,0.23563608,33447.0,33419.0,4.8693]
[1610398695221,0.09931,33447.0,33419.0,4.8693]
[1610398696221,0.09931,33447.0,33378.0,0.09087]
[1610398696421,0.09931,33447.0,33380.0,4.158]
[1610398696621,0.13632608,33411.0,33395.0,0.13632608]
[1610398697221,0.08252,33427.0,33395.0,0.13632608]
[1610398697423,0.08252,33427.0,33395.0,0.09726]
[1610398698224,0.08252,33427.0,33395.0,0.72856]
[1610398698625,0.08252,33427.0,33418.0,0.13632608]
[1610398699526,0.08252,33427.0,33415.0,1.0]
[1610398700632,0.13632608,33416.0,33415.0,1.0]
[1610398700832,0.20962608,33416.0,33415.0,1.0]
[1610398701034,0.20962608,33416.0,33395.0,0.72856]
[1610398701731,0.0733,33416.0,33395.0,0.72856]
[1610398701932,0.08252,33427.0,33395.0,0.72856]
[1610398702132,0.2724,33446.0,33395.0,0.72856]
[1610398702532,0.2724,33446.0,33395.0,0.09726]
[1610398702734,0.2724,33446.0,33396.0,5.0062]
[1610398702934,0.2724,33446.0,33441.0,0.13632608]
[1610398703738,0.2724,33446.0,33426.0,0.082]
[1610398704838,0.40872608,33446.0,33445.0,0.13632608]
[1610398705240,0.2724,33446.0,33445.0,0.13632608]
[1610398706440,0.2724,33446.0,33438.0,1.0]
[1610398707039,0.2724,33446.0,33437.0,0.13632608]
[1610398708843,0.2724,33446.0,33443.0,0.13632608]
[1610398709446,0.2724,33446.0,33426.0,0.082]
[1610398709647,0.2724,33446.0,33425.0,4.6148]
[1610398710947,0.2724,33446.0,33433.0,0.13632608]
[1610398711148,1.0,33438.0,33433.0,0.13632608]
[1610398711348,1.08204,33438.0,33433.0,0.13632608]
[1610398711750,1.08204,33438.0,33421.0,1.0]
[1610398712850,0.13632608,33422.0,33421.0,1.0]
[1610398713052,0.24303608,33422.0,33402.0,4.8328]
[1610398713651,0.10671,33422.0,33402.0,4.8328]
[1610398714151,0.08204,33438.0,33402.0,4.8328]
[1610398714352,0.08204,33438.0,33402.0,0.09625]
[1610398714853,0.13632608,33403.0,33402.0,0.09625]
[1610398715053,0.07767,33411.0,33406.0,1.0]
[1610398715253,0.08231,33420.0,33406.0,1.0]
[1610398716153,1.0,33422.0,33406.0,1.0]
[1610398717156,1.0,33408.0,33392.0,0.10489]
[1610398717556,0.13632608,33404.0,33402.0,0.13632608]
[1610398717758,0.13632608,33404.0,33392.0,0.10489]
[1610398718159,1.0,33408.0,33392.0,0.10489]
[1610398719159,0.2729,33437.0,33392.0,0.10489]
[1610398719558,0.2729,33437.0,33341.0,1.0]
[1610398721066,0.2729,33437.0,33334.0,1.0]
[1610398721665,0.13632608,33406.0,33334.0,1.0]
[1610398723066,0.13632608,33406.0,33340.0,1.0]
[1610398723667,0.13632608,33406.0,33398.0,0.13632608]
[1610398724066,0.13632608,33406.0,33395.0,0.10115]
[1610398724267,0.13632608,33406.0,33388.0,0.10992]
[1610398724466,0.20960608,33406.0,33388.0,0.10992]
[1610398725766,0.13632608,33389.0,33334.0,1.0]
[1610398727168,1.0,33364.0,33348.0,1.0]
[1610398728368,0.13632608,33356.0,33348.0,1.0]
[1610398728771,1.0,33364.0,33348.0,0.98]
[1610398728971,4.9855,33390.0,33348.0,0.07573]
[1610398730272,0.13632608,33349.0,33348.0,0.07573]
[1610398730670,3.59124371,33429.0,33348.0,0.07573]
[1610398730671,0.07787,33372.0,33348.0,0.07573]
[1610398731574,3.9771,33392.0,33348.0,0.07573]
[1610398732275,0.13632608,33359.0,33357.0,0.13632608]
[1610398732475,0.13632608,33359.0,33348.0,0.07573]
[1610398732874,0.11062,33383.0,33348.0,0.07573]
[1610398734078,0.11062,33383.0,33327.0,3.8399]
[1610398734277,0.11062,33383.0,33330.0,0.13632608]
[1610398734478,0.11062,33383.0,33330.0,0.21072608]
[1610398735080,1.61062,33383.0,33330.0,0.0744]
[1610398735694,4.8754,33361.0,33321.0,0.06927]
[1610398735881,4.94766,33361.0,33321.0,0.06927]
[1610398736282,0.13632608,33322.0,33321.0,0.06927]
[1610398736682,0.13632608,33322.0,33281.0,3.4596]
[1610398737481,0.2913,33359.0,33254.0,1.5]
[1610398737683,0.11062,33383.0,33279.0,5.021]
[1610398737881,0.2856,33391.0,33279.0,5.10069]
[1610398738282,0.13632608,33349.0,33334.0,0.13632608]
[1610398739282,0.07934,33366.0,33334.0,0.13632608]
[1610398739481,0.06959,33374.0,33334.0,0.24913608]
[1610398739683,0.2742,33377.0,33334.0,0.24913608]
[1610398740284,0.2742,33377.0,33334.0,0.11281]
[1610398740684,0.13632608,33357.0,33354.0,0.13632608]
[1610398741085,0.13632608,33357.0,33334.0,0.11281]
[1610398741688,0.2742,33377.0,33334.0,0.11281]
[1610398743086,0.13632608,33347.0,33339.0,0.13632608]
[1610398743488,1.0,33355.0,33338.0,1.0]
[1610398745089,0.2742,33377.0,33338.0,0.13632608]
[1610398746993,0.2742,33377.0,33334.0,0.11281]
[1610398747190,0.2742,33377.0,33324.0,4.2584]
[1610398747590,0.2742,33377.0,33342.0,0.13632608]
[1610398747791,0.2742,33377.0,33342.0,0.22113608]
[1610398748993,0.2742,33377.0,33342.0,0.85183608]
[1610398749494,0.13632608,33376.0,33374.0,0.13632608]
[1610398750093,0.13632608,33376.0,33342.0,0.71551]
[1610398751494,0.13632608,33364.0,33363.0,0.13632608]
[1610398751895,0.2742,33377.0,33363.0,0.13632608]
[1610398752096,0.2742,33377.0,33363.0,0.24562608]
[1610398753596,0.13632608,33364.0,33363.0,0.24562608]
[1610398753796,0.13632608,33364.0,33363.0,0.1093]
[1610398755398,0.2742,33377.0,33363.0,0.1093]
[1610398757202,0.2742,33377.0,33363.0,0.08269]
[1610398757601,0.13632608,33364.0,33363.0,0.08269]
[1610398759818,0.13632608,33364.0,33363.0,0.08269]
[1610398761519,0.2742,33377.0,33363.0,0.08269]
[1610398761719,3.9424,33373.0,33363.0,0.08269]
[1610398762119,1.5,33372.0,33342.0,0.08481]
[1610398762321,4.01449,33373.0,33328.0,4.1408]
[1610398762521,0.13632608,33329.0,33328.0,4.21569]
[1610398762728,0.13632608,33329.0,33328.0,0.07489]
[1610398763520,0.13632608,33329.0,33321.0,1.0]
[1610398764532,0.13632608,33322.0,33321.0,1.0]
[1610398765122,6.13632608,33322.0,33289.0,0.13632608]
[1610398765322,6.13632608,33322.0,33286.0,4.0525]
[1610398766526,6.13632608,33322.0,33284.0,1.0]
[1610398766527,0.13632608,33287.0,33284.0,1.0]
[1610398766926,6.0,33322.0,33284.0,1.0]
[1610398767128,4.5037,33328.0,33277.0,0.13632608]
[1610398767326,4.5037,33328.0,33279.0,0.0719]
[1610398767529,0.2886,33345.0,33279.0,0.0719]
[1610398767727,0.2886,33345.0,33295.0,4.6109]
[1610398768127,0.2886,33345.0,33295.0,4.68361]
[1610398768527,0.2886,33345.0,33344.0,0.13632608]
[1610398768727,0.2886,33345.0,33344.0,0.22235608]
[1610398769132,0.2886,33345.0,33344.0,6.22235608]
[1610398769427,0.2886,33345.0,33344.0,6.08603]
[1610398770627,0.2886,33345.0,33344.0,6.22235608]
[1610398771127,0.2886,33345.0,33344.0,0.22235608]
[1610398772733,0.13632608,33364.0,33344.0,0.22235608]
[1610398773132,0.13632608,33364.0,33344.0,6.22235608]
[1610398773932,1.0,33384.0,33344.0,6.22235608]
[1610398774532,0.15562608,33378.0,33372.0,0.13632608]
[1610398774732,0.15562608,33378.0,33372.0,0.10291]
[1610398775734,0.15562608,33378.0,33358.0,0.08093]
[1610398776634,0.13632608,33359.0,33358.0,0.08093]
[1610398776934,0.13632608,33359.0,33344.0,0.08603]
[1610398777135,0.13632608,33359.0,33351.0,1.0]
[1610398778036,1.0,33367.0,33351.0,1.0]
[1610398778536,1.13632608,33367.0,33356.0,0.13632608]
[1610398778736,1.0,33367.0,33351.0,1.0]
[1610398779137,0.11184,33372.0,33344.0,0.08603]
[1610398779337,0.11184,33372.0,33337.0,4.9717]
[1610398779537,0.0193,33378.0,33337.0,4.9717]
[1610398779736,0.0193,33378.0,33337.0,5.05838]
[1610398780636,0.13632608,33355.0,33347.0,0.13632608]
[1610398781038,0.13632608,33355.0,33354.0,1.0]
[1610398781240,0.13632608,33355.0,33354.0,1.07043]
[1610398781538,1.0,33372.0,33354.0,1.07043]
[1610398782538,0.13632608,33355.0,33354.0,1.07043]
[1610398783138,0.13632608,33355.0,33354.0,0.07043]
[1610398784040,1.0,33367.0,33354.0,0.07043]
[1610398784541,1.0,33367.0,33361.0,0.13632608]
[1610398784741,1.0,33367.0,33361.0,0.24638608]
[1610398785142,0.0193,33378.0,33361.0,0.24638608]
[1610398786343,0.0193,33378.0,33361.0,0.93538608]
[1610398786543,0.0193,33378.0,33377.0,0.13632608]
[1610398787145,0.0193,33378.0,33377.0,1.13632608]
[1610398787645,0.0193,33378.0,33377.0,1.0]
[1610398793051,0.0193,33378.0,33377.0,6.0]
[1610398794454,0.0193,33378.0,33377.0,6.612]
[1610398794654,0.08855,33397.0,33377.0,6.0]
[1610398794854,1.0,33415.0,33390.0,4.5513]
[1610398795056,3.60806321,33420.0,33390.0,4.5513]
[1610398795256,4.8695,33457.0,33390.0,4.5513]
[1610398795257,3.60570683,33433.0,33390.0,4.5513]
[1610398795757,3.60210847,33440.0,33390.0,4.5513]
[1610398796160,3.60186706,33447.0,33390.0,4.5513]
[1610398796357,3.60186706,33447.0,33390.0,0.09671]
[1610398796558,3.59872218,33452.0,33410.0,3.9485]
[1610398796958,3.59867533,33461.0,33410.0,3.9485]
[1610398797963,3.59296015,33467.0,33410.0,3.9485]
[1610398798563,0.13632608,33450.0,33437.0,0.13632608]
[1610398798961,0.21054608,33450.0,33437.0,0.13632608]
[1610398799162,0.07422,33450.0,33437.0,0.13632608]
[1610398800562,0.07422,33450.0,33410.0,3.9485]
[1610398801065,0.07422,33450.0,33438.0,0.13632608]
[1610398802066,0.07422,33450.0,33410.0,3.9485]
[1610398803067,0.07422,33450.0,33399.0,0.07574]
[1610398803267,0.07422,33450.0,33403.0,4.472]
[1610398803467,0.07422,33450.0,33416.0,0.13632608]
[1610398803967,4.9652,33476.0,33416.0,0.13632608]
[1610398804668,4.9652,33476.0,33416.0,0.77602608]
[1610398805468,0.13632608,33433.0,33416.0,0.6397]
[1610398805667,0.23012608,33433.0,33416.0,0.6397]
[1610398807070,0.23012608,33433.0,33431.0,1.0]
[1610398807269,0.0938,33433.0,33431.0,1.0]
[1610398808975,0.0938,33433.0,33431.0,1.6643]
[1610398809174,0.0938,33433.0,33431.0,0.6643]
[1610398809573,0.0938,33433.0,33432.0,0.13632608]
[1610398809773,0.13632608,33466.0,33432.0,0.13632608]
[1610398809975,3.55061504,33496.0,33432.0,0.13632608]
[1610398810174,0.0994628,34138.0,33447.0,3.7009]
[1610398810175,3.54927419,33502.0,33447.0,3.7009]
[1610398810375,3.54927419,33502.0,33432.0,0.13632608]
[1610398810575,0.14850853,33483.0,33459.0,4.5623]
[1610398810774,0.14850853,33483.0,33432.0,0.13632608]
[1610398810974,0.14850853,33483.0,33452.0,3.8941]
[1610398811176,0.14850853,33483.0,33452.0,2.06201]
[1610398811375,0.14850853,33483.0,33452.0,1.6892]
[1610398811578,0.14850853,33483.0,33482.0,0.13632608]
[1610398812780,0.06349853,33483.0,33482.0,0.13632608]
[1610398813378,2.82576459,33528.0,33482.0,0.13632608]
[1610398813579,2.82002488,33533.0,33503.0,4.9537]
[1610398813779,2.82002488,33533.0,33482.0,0.13632608]
[1610398813980,0.07871,33533.0,33478.0,0.11046]
[1610398814379,0.07871,33533.0,33470.0,4.1124]
[1610398814380,0.6974,33532.0,33485.0,0.13632608]
[1610398815179,0.6974,33532.0,33485.0,0.63662608]
[1610398815381,0.07871,33533.0,33485.0,0.13632608]
[1610398815581,0.07871,33533.0,33490.0,4.401]
[1610398816379,0.13632608,33528.0,33505.0,0.13632608]
[1610398816981,0.13632608,33528.0,33490.0,4.401]
[1610398817181,0.13632608,33528.0,33475.0,0.1048]
[1610398817783,0.06503608,33533.0,33475.0,0.1048]
[1610398818183,0.06503608,33533.0,33468.0,0.07755]
[1610398818384,0.06503608,33533.0,33467.0,4.9955]
[1610398818885,0.06503608,33533.0,33480.0,0.13632608]
[1610398819085,0.2983,33550.0,33480.0,0.13632608]
[1610398819086,0.5961,33529.0,33480.0,0.13632608]
[1610398819288,0.5961,33529.0,33467.0,4.9955]
[1610398819486,0.2983,33550.0,33422.0,1.07136]
[1610398819686,3.687,33517.0,33446.0,3.7834]
[1610398819888,3.77811,33517.0,33446.0,3.7834]
[1610398820288,0.2828,33516.0,33446.0,3.7834]
[1610398820699,0.5818,33516.0,33446.0,3.7834]
[1610398820904,0.5818,33516.0,33478.0,0.13632608]
[1610398821590,0.2828,33516.0,33478.0,0.13632608]
[1610398821989,0.09111,33517.0,33478.0,0.13632608]
[1610398822992,0.09111,33517.0,33506.0,0.13632608]
[1610398824892,0.13632608,33507.0,33499.0,0.13632608]
[1610398825092,0.13632608,33507.0,33499.0,1.13632608]
[1610398825295,0.23714608,33507.0,33499.0,1.0]
[1610398825595,0.10082,33507.0,33499.0,1.0]
[1610398826899,0.10082,33507.0,33506.0,0.13632608]
[1610398827598,2.78018787,33576.0,33506.0,0.13632608]
[1610398827798,0.2721,33573.0,33506.0,0.13632608]
[1610398827997,0.5463,33573.0,33513.0,4.7695]
[1610398828897,0.5463,33573.0,33551.0,0.13632608]
[1610398829098,0.2742,33573.0,33503.0,1.0]
[1610398829298,0.11158,33573.0,33546.0,3.824]
[1610398829498,0.11158,33573.0,33503.0,1.0]
[1610398829701,0.11158,33573.0,33557.0,3.8979]
[1610398829899,0.11158,33573.0,33557.0,3.01829]
[1610398830500,0.11158,33573.0,33557.0,1.9954]
[1610398830701,0.11158,33573.0,33557.0,1.57732]
[1610398830899,0.11158,33573.0,33566.0,0.13632608]
[1610398831100,0.11158,33573.0,33557.0,1.34886]
[1610398832401,0.11158,33573.0,33557.0,1.02702]
[1610398832603,0.11158,33573.0,33522.0,1.0]
[1610398832806,0.11158,33573.0,33530.0,3.7677]
[1610398833001,0.13632608,33549.0,33533.0,0.13632608]
[1610398833202,0.21625608,33549.0,33502.0,3.5504]
[1610398833817,0.21625608,33549.0,33499.0,0.11377]
[1610398834204,3.5637,33547.0,33499.0,0.11377]
[1610398834804,3.5637,33547.0,33493.0,1.0]
[1610398835005,0.13632608,33506.0,33502.0,0.13632608]
[1610398835203,0.09272,33514.0,33502.0,0.13632608]
[1610398835903,0.09272,33514.0,33476.0,3.378]
[1610398836305,0.09272,33514.0,33457.0,1.0]
[1610398837106,0.09272,33514.0,33510.0,1.0]
[1610398837507,0.13632608,33511.0,33510.0,1.0]
[1610398838107,0.09272,33514.0,33510.0,1.0]
[1610398838509,1.0,33527.0,33510.0,1.0]
[1610398839109,1.0,33527.0,33507.0,4.2517]
[1610398839110,0.07993,33549.0,33526.0,6.0]
[1610398839308,1.0,33576.0,33526.0,6.0]
[1610398839709,0.13632608,33570.0,33546.0,0.13632608]
[1610398839911,0.23535608,33570.0,33546.0,0.13632608]
[1610398840713,0.09903,33570.0,33526.0,6.0]
[1610398841112,0.09903,33570.0,33528.0,1.0]
[1610398841716,0.09903,33570.0,33539.0,0.13632608]
[1610398841717,0.13632608,33551.0,33539.0,0.13632608]
[1610398841913,0.13632608,33551.0,33528.0,1.0]
[1610398841914,0.24409608,33551.0,33528.0,1.0]
[1610398842315,4.4453,33550.0,33528.0,1.0]
[1610398843114,4.4453,33550.0,33498.0,0.10045]
[1610398843517,4.4453,33550.0,33491.0,4.4254]
[1610398843716,0.13632608,33510.0,33504.0,0.13632608]
[1610398843916,0.10577,33514.0,33504.0,0.13632608]
[1610398845318,0.10577,33514.0,33513.0,6.0]
[1610398847017,0.10577,33514.0,33497.0,0.08815]
[1610398848321,0.24209608,33514.0,33510.0,0.13632608]
[1610398848921,0.10577,33514.0,33510.0,0.13632608]
[1610398849122,4.4453,33550.0,33513.0,6.0]
[1610398849524,0.10777,33551.0,33513.0,6.0]
[1610398849824,1.0,33556.0,33513.0,6.0]
[1610398850325,0.13632608,33544.0,33513.0,6.0]
[1610398850523,0.22077608,33544.0,33513.0,6.0]
[1610398850723,0.08445,33544.0,33513.0,6.0]
[1610398851023,0.08445,33544.0,33543.0,1.0]
[1610398852327,0.08445,33544.0,33543.0,1.13632608]
[1610398852730,1.0,33569.0,33543.0,1.13632608]
[1610398853130,0.06305655,33574.0,33543.0,0.13632608]
[1610398853332,0.06305655,33574.0,33517.0,1.0]
[1610398854432,0.13632608,33542.0,33529.0,0.13632608]
[1610398854830,0.22448608,33542.0,33529.0,0.13632608]
[1610398855032,0.22448608,33542.0,33541.0,1.0]
[1610398856235,0.08816,33542.0,33541.0,0.72721713]
[1610398856632,0.08816,33542.0,33507.0,3.6167]
[1610398856836,0.08816,33542.0,33541.0,0.13632608]
[1610398857637,0.06305655,33574.0,33541.0,0.13632608]
[1610398858440,0.06305655,33574.0,33543.0,4.9546]